fUST/lending_fUST_20250904
["ID","MTS","AMOUNT","RATE_DAILY","PERIOD"]
[383536783,1756978249386,-480.0,0.00013972,2]
[383536784,1756978249396,-480.0,0.00013972,2]
[383536785,1756978249407,-480.0,0.00013972,2]
[383536786,1756978249418,-480.0,0.00013972,2]
[383536787,1756978249427,-480.0,0.00013972,2]
[383536788,1756978249437,-480.0,0.00013972,2]
[383536789,1756978249446,-480.0,0.00013972,2]
[383536790,1756978249455,-480.0,0.00013972,2]
[383536791,1756978249466,-480.0,0.00013972,2]
[383536792,1756978249475,-480.0,0.00013972,2]
[383536793,1756978249485,-480.0,0.00013972,2]
[383536794,1756978249495,-480.0,0.00013972,2]
[383536795,1756978249504,-482.35822572,0.00013972,2]
[383536796,1756978249513,-856.64,0.00013972,2]
[383536797,1756978249522,-480.0,0.00013972,2]
[383536798,1756978249533,-480.0,0.00013972,2]
[383536799,1756978249543,-480.0,0.00013972,2]
[383536800,1756978249552,-480.0,0.00013972,2]
[383536801,1756978249561,-1008.10669318,0.00013972,2]
[383536802,1756978249570,-480.0,0.00013972,2]
[383536803,1756978249580,-480.0,0.00013972,2]
[383536804,1756978249589,-517.46,0.00013972,2]
[383536805,1756978249598,-1140.59,0.00013972,2]
[383536806,1756978249607,-482.25604087,0.00013972,2]
[383536807,1756978249617,-2072.34,0.00013972,2]
[383536808,1756978249626,-480.0,0.00013972,2]
[383536809,1756978249635,-480.0,0.00013972,2]
[383536810,1756978249645,-480.0,0.00013972,2]
[383536811,1756978249654,-480.0,0.00013972,2]
[383536812,1756978249664,-151.0,0.00013972,2]
[383536813,1756978249674,-481.94000333,0.00013972,2]
[383536814,1756978249683,-480.0,0.00013972,2]
[383536815,1756978249693,-543.49312356,0.00013972,2]
[383536816,1756978249703,-480.0,0.00013972,2]
[383536817,1756978249712,-1854.35,0.00013972,2]
[383536818,1756978249722,-480.0,0.00013972,2]
[383536819,1756978249731,-480.0,0.00013972,2]
[383536820,1756978249741,-484.64199434,0.00013972,2]
[383536821,1756978249751,-482.97055594,0.00013972,2]
[383536822,1756978249761,-480.0,0.00013972,2]
[383536823,1756978249770,-2300.35,0.00013972,2]
[383536824,1756978249779,-480.0,0.00013972,2]
[383536825,1756978249790,-151.0,0.00013972,2]
[383536826,1756978249799,-467.851054,0.00013972,2]
[383536827,1756978249809,-849.0,0.00013972,2]
[383536828,1756978249818,-467.851054,0.00013972,2]
[383536829,1756978249828,-467.851054,0.00013972,2]
[383536830,1756978249837,-467.851054,0.00013972,2]
[383536831,1756978249847,-480.0,0.00013972,2]
[383536832,1756978249856,-253.42359675,0.00013972,2]
[383536833,1756978249865,-480.0,0.00013972,2]
[383536834,1756978249874,-480.0,0.00013972,2]
[383536835,1756978249884,-151.0,0.00013972,2]
[383536836,1756978249893,-3857.28,0.00013972,2]
[383536837,1756978249902,-480.0,0.00013972,2]
[383536838,1756978249914,-480.0,0.00013972,2]
[383536839,1756978249924,-480.0,0.00013972,2]
[383536840,1756978249934,-480.0,0.00013972,2]
[383536841,1756978249943,-986.5,0.00013972,2]
[383536842,1756978249952,-480.0,0.00013972,2]
[383536843,1756978249963,-522.65,0.00013972,2]
[383536844,1756978249972,-480.0,0.00013972,2]
[383536845,1756978249981,-151.0,0.00013972,2]
[383536846,1756978249993,-480.0,0.00013972,2]
[383536847,1756978250002,-151.0,0.00013972,2]
[383536848,1756978250011,-500.0,0.00013972,2]
[383536849,1756978250021,-500.0,0.00013973,2]
[383536850,1756978250030,-500.0,0.00013973,2]
[383536851,1756978250039,-500.0,0.00013973,2]
[383536852,1756978250049,-501.41367027,0.00013973,2]
[383536853,1756978250058,-500.0,0.00013973,2]
[383536854,1756978250154,-500.0,0.00013973,2]
[383536855,1756978250165,-504.43838053,0.00013973,2]
[383536856,1756978250176,-50109.05587479,0.0001399,2]
[383536857,1756978250186,-656.935,0.0001399,2]
[383536858,1756978250195,-305.051796,0.0001399,2]
[383536859,1756978250205,-305.051796,0.0001399,2]
[383536860,1756978250215,-305.051796,0.0001399,2]
[383536861,1756978250226,-305.051796,0.0001399,2]
[383536862,1756978250235,-151.0,0.0001399,2]
[383536863,1756978250245,-233.975496,0.0001399,2]
[383536864,1756978250255,-151.0,0.0001399,2]
[383536865,1756978250265,-233.975496,0.0001399,2]
[383536866,1756978250274,-151.0,0.0001399,2]
[383536867,1756978250284,-163.723978,0.0001399,2]
[383536868,1756978250294,-165.13595,0.0001399,2]
[383536869,1756978250303,-233.975496,0.0001399,2]
[383536870,1756978250313,-233.975496,0.0001399,2]
[383536871,1756978250323,-151.0,0.0001399,2]
[383536872,1756978250333,-151.0,0.0001399,2]
[383536873,1756978250343,-151.0,0.0001399,2]
[383536874,1756978250353,-230.025063,0.0001399,2]
[383536875,1756978250362,-151.0,0.0001399,2]
[383536876,1756978250371,-151.0,0.0001399,2]
[383536877,1756978250381,-215.240806,0.0001399,2]
[383536878,1756978250391,-215.240806,0.0001399,2]
[383536879,1756978250401,-215.240806,0.0001399,2]
[383536880,1756978250411,-215.240806,0.0001399,2]
[383536881,1756978250421,-530.768718,0.0001399,2]
[383536882,1756978250430,-530.768718,0.0001399,2]
[383536883,1756978250440,-151.0,0.0001399,2]
[383536884,1756978250450,-530.768718,0.0001399,2]
[383536885,1756978250459,-530.768718,0.0001399,2]
[383536886,1756978250469,-643.452824,0.0001399,2]
[383536887,1756978250479,-151.0,0.0001399,2]
[383536888,1756978250489,-643.452824,0.0001399,2]
[383536889,1756978250499,-643.452824,0.0001399,2]
[383536890,1756978250508,-643.452824,0.0001399,2]
[383536891,1756978250517,-151.0,0.0001399,2]
[383536892,1756978250527,-151.0,0.0001399,2]
[383536893,1756978250536,-153.278175,0.0001399,2]
[383536894,1756978250546,-467.851054,0.0001399,2]
[383536895,1756978250557,-467.851054,0.0001399,2]
[383536896,1756978250567,-467.851054,0.0001399,2]
[383536897,1756978250579,-467.851054,0.0001399,2]
[383536898,1756978250589,-255.148432,0.0001399,2]
[383536899,1756978250601,-151.0,0.0001399,2]
[383536900,1756978250611,-10104.69201054,0.00014,2]
[383536901,1756978250621,-204.71,0.00014004,2]
[383536902,1756978250633,-151.0,0.00014004,2]
[383536903,1756978250643,-151.0,0.00014004,2]
[383536904,1756978250653,-151.0,0.00014004,2]
[383536905,1756978250662,-151.0,0.00014004,2]
[383536906,1756978250673,-151.0,0.00014004,2]
[383536907,1756978250683,-151.0,0.00014004,2]
[383536908,1756978250693,-157.828789,0.00014004,2]
[383536909,1756978250702,-151.0,0.00014004,2]
[383536910,1756978250711,-151.0,0.00014004,2]
[383536911,1756978250721,-151.0,0.00014004,2]
[383536912,1756978250730,-3000.0,0.0001404,2]
[383536913,1756978250739,-168.0,0.00014086,2]
[383536914,1756978250749,-608.0,0.00014092,2]
[383536915,1756978250759,-151.0,0.000141,2]
[383536916,1756978250768,-151.0,0.000141,2]
[383536917,1756978250777,-250.0,0.00014101,2]
[383536918,1756978250787,-208.766,0.00014101,2]
[383536919,1756978250796,-1011.886,0.00014101,2]
[383536920,1756978250806,-633.0,0.00014101,2]
[383536921,1756978250816,-2159.74,0.00014101,2]
[383536922,1756978250825,-409.0,0.00014101,2]
[383536923,1756978250834,-425.265,0.00014101,2]
[383536924,1756978250843,-224.196,0.00014128,2]
[383536925,1756978250853,-250.0,0.00014128,2]
[383536926,1756978250862,-249.1,0.00014128,2]
[383536927,1756978250871,-250.498,0.00014128,2]
[383536928,1756978250881,-262.104,0.00014128,2]
[383536929,1756978250890,-221.273,0.00014128,2]
[383536930,1756978250900,-151.0,0.000142,2]
[383536931,1756978250911,-151.0,0.000142,2]
[383536932,1756978250921,-151.0,0.000142,2]
[383536933,1756978250932,-401.39850244,0.00014221,2]
[383536934,1756978250942,-1000.0,0.00014221,2]
[383536935,1756978250952,-1000.0,0.00014221,2]
[383536936,1756978250962,-1000.0,0.00014221,2]
[383536937,1756978250971,-1000.0,0.00014221,2]
[383536938,1756978250981,-1000.0,0.00014221,2]
[383536939,1756978250990,-1000.0,0.00014221,2]
[383536940,1756978251001,-1019.63847923,0.00014221,2]
[383536941,1756978251011,-1000.0,0.00014221,2]
[383536942,1756978251020,-1000.0,0.00014221,2]
[383536943,1756978251030,-1000.0,0.00014221,2]
[383536944,1756978251040,-212.92880441,0.00014224,2]
[383536945,1756978251051,-151.18639333,0.00014224,2]
[383536946,1756978251061,-151.0,0.00014224,2]
[383536947,1756978251071,-151.0,0.00014224,2]
[383536948,1756978251081,-151.0,0.00014224,2]
[383536949,1756978251091,-247.40859083,0.00014224,2]
[383536950,1756978251101,-470.0,0.00014224,2]
[383536951,1756978251110,-151.0,0.00014224,2]
[383536952,1756978251120,-151.0,0.00014224,2]
[383536953,1756978251130,-500.0,0.00014224,2]
[383536954,1756978251140,-151.0,0.00014224,2]
[383536955,1756978251149,-151.0,0.00014238,2]
[383536956,1756978251159,-160.6548987,0.00014245,2]
[383536957,1756978251169,-151.0,0.00014246,2]
[383536958,1756978251178,-151.51185324,0.00014246,2]
[383536959,1756978251188,-151.0,0.00014246,2]
[383536960,1756978251198,-151.0,0.00014246,2]
[383536961,1756978251208,-151.0,0.00014246,2]
[383536962,1756978251217,-604.0,0.00014246,2]
[383536963,1756978251227,-151.0,0.00014246,2]
[383536964,1756978251236,-151.0,0.00014246,2]
[383536965,1756978251246,-604.0,0.00014246,2]
[383536966,1756978251256,-151.0,0.00014246,2]
[383536967,1756978251265,-510.0,0.00014246,2]
[383536968,1756978251275,-480.0,0.00014246,2]
[383536969,1756978251284,-155.25144808,0.00014246,2]
[383536970,1756978251294,-480.0,0.00014246,2]
[383536971,1756978251303,-151.0,0.00014246,2]
[383536972,1756978251313,-151.0,0.00014246,2]
[383536973,1756978251323,-151.0,0.00014246,2]
[383536974,1756978251333,-480.0,0.00014246,2]
[383536975,1756978251344,-485.31907194,0.00014246,2]
[383536976,1756978251354,-594.7205264,0.00014246,2]
[383536977,1756978251364,-274.24216025,0.00014246,2]
[383536978,1756978251375,-480.0,0.00014246,2]
[383536979,1756978251385,-625.25693867,0.00014246,2]
[383536980,1756978251396,-480.0,0.00014246,2]
[383536981,1756978251406,-151.0,0.00014246,2]
[383536982,1756978251416,-151.0,0.00014246,2]
[383536983,1756978251426,-151.0,0.00014246,2]
[383536984,1756978251436,-151.0,0.00014246,2]
[383536985,1756978251446,-151.0,0.00014246,2]
[383536986,1756978251456,-151.0,0.00014246,2]
[383536987,1756978251466,-151.0,0.00014246,2]
[383536988,1756978251476,-480.0,0.00014246,2]
[383536989,1756978251486,-480.0,0.00014246,2]
[383536990,1756978251496,-480.0,0.00014246,2]
[383536991,1756978251505,-480.0,0.00014246,2]
[383536992,1756978251515,-481.74901092,0.00014246,2]
[383536993,1756978251524,-606.33175504,0.00014246,2]
[383536994,1756978251534,-480.0,0.00014246,2]
[383536995,1756978251543,-480.0,0.00014246,2]
[383536996,1756978251553,-480.0,0.00014246,2]
[383536997,1756978251563,-480.0,0.00014246,2]
[383536998,1756978251573,-480.0,0.00014246,2]
[383536999,1756978251583,-354.37630787,0.00014246,2]
[383537000,1756978251593,-480.0,0.00014246,2]
[383537001,1756978251602,-485.37561502,0.00014246,2]
[383537002,1756978251612,-480.0,0.00014246,2]
[383537003,1756978251622,-768.60495703,0.00014246,2]
[383537004,1756978251632,-483.89476632,0.00014246,2]
[383537005,1756978251641,-3071.34540831,0.00014246,2]
[383537006,1756978251650,-151.0,0.00014246,2]
[383537007,1756978251660,-151.0,0.00014246,2]
[383537008,1756978251670,-151.0,0.00014246,2]
[383537009,1756978251681,-480.0,0.00014246,2]
[383537010,1756978251690,-151.0,0.00014246,2]
[383537011,1756978251701,-483.37829575,0.00014246,2]
[383537012,1756978251713,-585.4224622,0.00014246,2]
[383537013,1756978251723,-151.0,0.00014246,2]
[383537014,1756978251733,-480.0,0.00014246,2]
[383537015,1756978251743,-188.93975815,0.00014246,2]
[383537016,1756978251752,-595.53557112,0.00014246,2]
[383537017,1756978251761,-439.34739395,0.00014246,2]
[383537018,1756978251771,-569.91220773,0.00014246,2]
[383537019,1756978251862,-710.8,0.00014246,2]
[383537020,1756978251872,-151.0,0.00014246,2]
[383537021,1756978251882,-151.0,0.00014246,2]
[383537022,1756978251893,-480.0,0.00014246,2]
[383537023,1756978251902,-480.0,0.00014246,2]
[383537024,1756978251914,-151.0,0.00014246,2]
[383537025,1756978251924,-187.829293,0.00014246,2]
[383537026,1756978251934,-187.829293,0.00014246,2]
[383537027,1756978251943,-480.0,0.00014246,2]
[383537028,1756978251952,-187.829293,0.00014246,2]
[383537029,1756978251962,-187.829293,0.00014246,2]
[383537030,1756978251971,-485.00478162,0.00014246,2]
[383537031,1756978251980,-151.0,0.00014246,2]
[383537032,1756978251990,-151.0,0.00014246,2]
[383537033,1756978252000,-151.0,0.00014246,2]
[383537034,1756978252010,-480.0,0.00014246,2]
[383537035,1756978252019,-480.0,0.00014246,2]
[383537036,1756978252028,-276.208285,0.00014246,2]
[383537037,1756978252038,-480.0,0.00014246,2]
[383537038,1756978252048,-276.208285,0.00014246,2]
[383537039,1756978252057,-276.208285,0.00014246,2]
[383537040,1756978252069,-276.208285,0.00014246,2]
[383537041,1756978252078,-151.0,0.00014246,2]
[383537042,1756978252088,-151.0,0.00014246,2]
[383537043,1756978252097,-151.0,0.00014246,2]
[383537044,1756978252107,-151.7098,0.00014246,2]
[383537045,1756978252117,-151.0,0.00014246,2]
[383537046,1756978252127,-480.0,0.00014246,2]
[383537047,1756978252136,-151.0,0.00014246,2]
[383537048,1756978252146,-151.0,0.00014246,2]
[383537049,1756978252155,-584.37,0.00014246,2]
[383537050,1756978252165,-480.0,0.00014246,2]
[383537051,1756978252174,-151.0,0.00014246,2]
[383537052,1756978252184,-151.0,0.00014246,2]
[383537053,1756978252193,-151.0,0.00014246,2]
[383537054,1756978252203,-151.0,0.00014246,2]
[383537055,1756978252212,-151.0,0.00014246,2]
[383537056,1756978252222,-151.0,0.00014246,2]
[383537057,1756978252231,-218.935891,0.00014246,2]
[383537058,1756978252241,-218.935891,0.00014246,2]
[383537059,1756978252251,-218.935891,0.00014246,2]
[383537060,1756978252260,-218.935891,0.00014246,2]
[383537061,1756978252270,-319.6003917,0.00014246,2]
[383537062,1756978252279,-480.0,0.00014246,2]
[383537063,1756978252289,-480.0,0.00014246,2]
[383537064,1756978252298,-480.0,0.00014246,2]
[383537065,1756978252308,-2064.67,0.00014246,2]
[383537066,1756978252317,-371.75094622,0.00014246,2]
[383537067,1756978252327,-480.0,0.00014246,2]
[383537068,1756978252336,-480.0,0.00014246,2]
[383537069,1756978252346,-480.0,0.00014246,2]
[383537070,1756978252355,-151.0,0.00014246,2]
[383537071,1756978252365,-151.0,0.00014246,2]
[383537072,1756978252374,-480.0,0.00014246,2]
[383537073,1756978252384,-151.0,0.00014246,2]
[383537074,1756978252394,-151.0,0.00014246,2]
[383537075,1756978252404,-151.0,0.00014246,2]
[383537076,1756978252413,-480.0,0.00014246,2]
[383537077,1756978252422,-1273.42,0.00014246,2]
[383537078,1756978252432,-480.0,0.00014246,2]
[383537079,1756978252441,-161.807222,0.00014246,2]
[383537080,1756978252451,-161.807222,0.00014246,2]
[383537081,1756978252460,-161.807222,0.00014246,2]
[383537082,1756978252471,-987.06377704,0.00014246,2]
[383537083,1756978252480,-161.807222,0.00014246,2]
[383537084,1756978252490,-168.91194395,0.00014246,2]
[383537088,1756978281676,15.61121763,0.00012329,2]
[383537089,1756978281700,446.74878237,0.00012329,2]
[383537090,1756978294636,401.2672892,0.0001298,2]
[383537091,1756978310054,166.949971,0.00025,30]
[383537092,1756978310359,166.949971,0.00021,20]
[383537123,1756978877934,1161.11754605,0.00027396,120]
[383537124,1756978909462,166.949971,0.00025,30]
[383537134,1756979081452,5000.0,0.00029749,66]
[383537135,1756979098979,1424.18748766,0.00013062,2]
[383537136,1756979107081,1424.18748766,0.00013062,2]
[383537137,1756979123185,1424.18748766,0.00013062,2]
[383537138,1756979131225,1059.08078717,0.00013062,2]
[383537144,1756979146844,1424.18748766,0.00013062,2]
[383537147,1756979169914,623.79443273,0.00013062,2]
[383537227,1756979432404,-1185.38,0.00013231,2]
[383537228,1756979432414,-1185.38,0.000135,2]
[383537229,1756979432424,-370.0,0.00013573,2]
[383537230,1756979432433,-1424.18748766,0.00013589,2]
[383537231,1756979432443,-1200.0,0.00013596,2]
[383537232,1756979432452,-300.0,0.00013597,2]
[383537233,1756979432462,-300.0,0.00013597,2]
[383537234,1756979432471,-300.0,0.00013597,2]
[383537235,1756979432481,-300.0,0.00013597,2]
[383537236,1756979432491,-300.0,0.00013597,2]
[383537237,1756979432500,-20116.28886876,0.00013598,2]
[383537238,1756979432510,-13649.32191635,0.000136,2]
[383537240,1756979432542,-640.69884951,0.000136,2]
[383537280,1756979438395,-3214.82123974,0.000136,2]
[383537710,1756979443358,-2141.61804512,0.000136,2]
[383538020,1756979446504,-579.41204265,0.000136,2]
[383540139,1756979517018,-370.0,0.00013466,2]
[383540140,1756979517041,-4630.0,0.0001359,2]
[383540156,1756979593548,3000.0,0.00025,30]
[383540190,1756979780827,1772.36875789,0.0001256,2]
[383540191,1756979780850,7101.19471271,0.0001256,2]
[383540255,1756980034838,177.524712,0.00012592,2]
[383540257,1756980109347,166.949971,0.00025,30]
[383540275,1756980256143,209.71993295,0.00012986,2]
[383540278,1756980283781,250.0,0.00012289,2]
[383540280,1756980506959,168.0,0.00013003,2]
[383540312,1756980632610,-168.0,0.00013134,2]
[383540315,1756980632621,-120.20787501,0.00013266,2]
[383540318,1756980632632,-47.79212499,0.00013266,2]
[383540321,1756980632643,-257.1338726,0.00013453,2]
[383540323,1756980632654,-343.29047227,0.00013466,2]
[383540326,1756980632663,-39.53958596,0.00013478,2]
[383540330,1756980632678,-128.46041404,0.00013478,2]
[383540333,1756980632687,-2347.87260389,0.00013479,2]
[383540336,1756980632696,-187.78006525,0.0001348,2]
[383540339,1756980632705,-151.0,0.0001348,2]
[383540342,1756980632714,-1200.0,0.00013483,2]
[383540345,1756980632723,-500.0,0.00013484,2]
[383540348,1756980632732,-252.61735502,0.00013484,2]
[383540351,1756980632742,-1200.0,0.00013484,2]
[383540353,1756980632751,-300.0,0.00013484,2]
[383540356,1756980632760,-300.0,0.00013484,2]
[383540358,1756980632770,-300.0,0.00013484,2]
[383540360,1756980632779,-300.0,0.00013484,2]
[383540361,1756980632789,-50000.0,0.00013485,2]
[383540362,1756980632798,-1507.11372966,0.00013502,2]
[383540363,1756980632807,-363.79418694,0.00013534,2]
[383540365,1756980632816,-500.0,0.00013589,2]
[383540367,1756980632826,-500.0,0.00013589,2]
[383540369,1756980632835,-500.0,0.00013589,2]
[383540371,1756980632844,-500.0,0.00013589,2]
[383540373,1756980632853,-500.0,0.00013589,2]
[383540374,1756980632862,-500.0,0.00013589,2]
[383540376,1756980632871,-500.0,0.00013589,2]
[383540378,1756980632881,-500.0,0.00013589,2]
[383540380,1756980632891,-500.0,0.00013589,2]
[383540383,1756980632900,-436.13638984,0.00013589,2]
[383540385,1756980632910,-500.0,0.00013589,2]
[383540387,1756980632919,-500.0,0.00013589,2]
[383540389,1756980632929,-158.39655956,0.00013589,2]
[383540390,1756980632938,-13035.78106576,0.0001359,2]
[383540399,1756980638543,-266.9869136,0.00013484,2]
[383540400,1756980638555,-233.0130864,0.00013484,2]
[383540401,1756980638565,-58.2870686,0.00013484,2]
[383540402,1756980638576,-295.0258342,0.00013484,2]
[383540403,1756980638586,-190.56386347,0.00013484,2]
[383540404,1756980638596,-474.54529557,0.0001359,2]
[383540405,1756980638605,-553.28735139,0.00013598,2]
[383540406,1756980638615,-204.71,0.00013598,2]
[383540407,1756980638624,-4672.01281972,0.000136,2]
[383540408,1756980638636,-9380.97698608,0.000136,2]
[383540518,1756980643613,-1043.87676627,0.00013349,2]
[383540520,1756980643623,-457195.38303829,0.000136,2]
[383542434,1756980708191,166.949971,0.00025,30]
[383542449,1756981057067,1318.7245134,0.00013035,2]
[383542454,1756981124723,774.84612894,0.0001,2]
[383542455,1756981124744,893.15387106,0.0001,2]
[383542456,1756981131035,400.0,0.0002739,120]
[383542472,1756981277857,250.0,0.00013069,2]
[383542474,1756981301337,250.0,0.00013083,2]
[383542475,1756981324144,250.0,0.00013083,2]
[383542481,1756981347300,250.0,0.00013083,2]
[383542485,1756981371227,250.0,0.00013083,2]
[383542489,1756981396832,250.0,0.00013083,2]
[383542495,1756981416734,7606.85612894,0.000131,2]
[383542496,1756981416755,2393.14387106,0.000131,2]
[383542498,1756981419555,250.0,0.00013083,2]
[383542501,1756981440852,458.0,0.000131,2]
[383542516,1756981539979,212.86965149,0.00013029,2]
[383542527,1756981642949,250.0,0.00013029,2]
[383542533,1756981683890,250.0,0.00013009,2]
[383542535,1756981694242,417.86770418,0.00010618,2]
[383542537,1756981718914,183.51227797,0.00013035,2]
[383542538,1756981720311,617.0,0.00027,120]
[383542543,1756981741242,183.51227797,0.00013035,2]
[383542545,1756981756335,231.98479522,0.00012857,2]
[383542546,1756981758264,927.01124169,0.00012857,2]
[383542548,1756981764742,183.51227797,0.00013035,2]
[383542551,1756981788040,183.51227797,0.00013035,2]
[383542557,1756981811414,183.51227797,0.00013035,2]
[383542595,1756981831823,-183.51227797,0.00013167,2]
[383542597,1756981831833,-183.51227797,0.000133,2]
[383542599,1756981831842,-11.56441371,0.00013381,2]
[383542605,1756981831877,-2411.32469523,0.00013381,2]
[383542607,1756981831887,-1860.70474554,0.000134,2]
[383542611,1756981831897,-5056.60703763,0.00013408,2]
[383542614,1756981831907,-1200.0,0.00013446,2]
[383542616,1756981831916,-300.0,0.00013448,2]
[383542618,1756981831926,-300.0,0.00013448,2]
[383542620,1756981831935,-1860.70474551,0.0001345,2]
[383542624,1756981831944,-1200.0,0.00013479,2]
[383542627,1756981831954,-21967.49284346,0.0001348,2]
[383542654,1756981837846,-1419.40253829,0.00013345,2]
[383542655,1756981837856,-28032.50715654,0.0001348,2]
[383542656,1756981837865,-500.0,0.00013481,2]
[383542657,1756981837875,-500.0,0.00013481,2]
[383542658,1756981837884,-500.0,0.00013481,2]
[383542660,1756981837894,-266.17306458,0.00013481,2]
[383542661,1756981837904,-500.0,0.00013481,2]
[383542662,1756981837913,-500.0,0.00013481,2]
[383542663,1756981837922,-500.0,0.00013481,2]
[383542664,1756981837931,-500.0,0.00013481,2]
[383542665,1756981837941,-500.0,0.00013481,2]
[383542666,1756981837951,-151.0,0.00013482,2]
[383542667,1756981837960,-151.0,0.00013482,2]
[383542668,1756981837970,-275.52940311,0.00013482,2]
[383542669,1756981837979,-229.69647836,0.00013482,2]
[383542670,1756981837989,-500.0,0.00013482,2]
[383542671,1756981837998,-187.23618621,0.00013482,2]
[383542672,1756981838008,-151.0,0.00013482,2]
[383542673,1756981838018,-151.08848987,0.00013482,2]
[383542674,1756981838027,-500.0,0.00013482,2]
[383542675,1756981838037,-151.0,0.00013482,2]
[383542676,1756981838047,-223.86140668,0.00013482,2]
[383542677,1756981838057,-553.0,0.00013482,2]
[383542678,1756981838067,-500.0,0.00013482,2]
[383542679,1756981838076,-151.0,0.00013482,2]
[383542680,1756981838086,-151.47903928,0.00013482,2]
[383542681,1756981838095,-500.0,0.00013482,2]
[383542682,1756981838104,-271.29374356,0.00013482,2]
[383542683,1756981838114,-151.0,0.00013482,2]
[383542684,1756981838123,-4101.00186393,0.00013486,2]
[383542685,1756981838132,-156020.53086018,0.0001349,2]
[383542686,1756981838141,-1860.70474551,0.00013499,2]
[383542687,1756981838150,-151.0,0.000135,2]
[383542688,1756981838159,-200.0,0.000135,2]
[383542689,1756981838169,-1000.0,0.00013528,2]
[383542690,1756981838178,-1000.0,0.00013528,2]
[383542691,1756981838188,-1000.0,0.00013528,2]
[383542692,1756981838197,-1000.0,0.00013528,2]
[383542693,1756981838207,-1000.0,0.00013528,2]
[383542694,1756981838216,-1000.0,0.00013528,2]
[383542695,1756981838226,-250.0,0.00013528,2]
[383542696,1756981838236,-1000.0,0.00013528,2]
[383542697,1756981838245,-250.0,0.00013528,2]
[383542698,1756981838255,-151.0,0.00013528,2]
[383542699,1756981838264,-151.0,0.00013528,2]
[383542700,1756981838273,-187.78006525,0.00013528,2]
[383542701,1756981838283,-1000.0,0.00013528,2]
[383542702,1756981838292,-214.26909825,0.00013528,2]
[383542703,1756981838302,-151.0,0.00013528,2]
[383542704,1756981838311,-151.0,0.00013528,2]
[383542705,1756981838321,-1000.0,0.00013528,2]
[383542706,1756981838330,-151.0,0.00013528,2]
[383542707,1756981838340,-151.0,0.00013528,2]
[383542708,1756981838349,-151.0,0.00013528,2]
[383542709,1756981838359,-1000.0,0.00013528,2]
[383542710,1756981838368,-151.0,0.00013528,2]
[383542711,1756981838378,-151.0,0.00013528,2]
[383542712,1756981838387,-151.0,0.00013528,2]
[383542713,1756981838396,-1000.0,0.00013528,2]
[383542714,1756981838405,-151.0,0.00013528,2]
[383542715,1756981838415,-151.83333832,0.00013528,2]
[383542716,1756981838424,-151.0,0.00013528,2]
[383542717,1756981838434,-1000.0,0.00013528,2]
[383542718,1756981838444,-151.0,0.00013528,2]
[383542719,1756981838454,-151.0,0.00013528,2]
[383542720,1756981838463,-1000.0,0.00013528,2]
[383542721,1756981838473,-151.0,0.00013528,2]
[383542722,1756981838482,-151.0,0.00013528,2]
[383542723,1756981838492,-1000.0,0.00013528,2]
[383542724,1756981838501,-151.0,0.00013528,2]
[383542725,1756981838511,-151.0,0.00013528,2]
[383542726,1756981838520,-1000.0,0.00013528,2]